bitfinex/quotes_SOLUSD_20240925
["timestamp","ask_amount","ask_price","bid_price","bid_amount"]
[1727252616125,6.653,150.31,150.25,6.5026]
[1727252616936,0.42511646,150.3,150.25,6.5026]
[1727252621045,6.653,150.31,150.25,6.5026]
[1727252622120,30.430284,150.3,150.25,6.5026]
[1727252622320,6.6534,150.3,150.25,6.5026]
[1727252623235,24.20200046,150.29,150.25,6.5026]
[1727252623428,23.776884,150.28,150.25,6.5026]
[1727252623625,30.431084,150.28,150.25,6.5026]
[1727252624029,23.776884,150.28,150.25,6.5026]
[1727252629734,6.6534,150.3,150.25,6.5026]
[1727252629930,23.776884,150.29,150.25,7.83354979]
[1727252630748,6.6529,150.31,150.25,7.83354979]
[1727252630918,6.6529,150.31,150.25,6.5026]
[1727252631852,6.6529,150.31,150.26,1.33084955]
[1727252632344,0.245159,150.34,150.26,1.33084955]
[1727252632551,6.6525,150.32,150.26,1.33084955]
[1727252633537,6.6525,150.32,150.25,6.5026]
[1727252633735,7.07811646,150.31,150.25,6.5026]
[1727252634067,6.653,150.31,150.25,6.5026]
[1727252643447,24.022043,150.34,150.25,6.5026]
[1727252643639,6.6533,150.3,150.25,6.5026]
[1727252643841,0.42511646,150.29,150.25,6.5026]
[1727252644354,30.430884,150.29,150.25,6.5026]
[1727252645255,6.6533,150.3,150.25,7.83359601]
[1727252645628,16.874659,150.34,150.25,7.83359601]
[1727252645965,23.776884,150.3,150.25,7.83359601]
[1727252647043,6.6529,150.31,150.25,6.5026]
[1727252648433,43.776884,150.33,150.25,6.5026]
[1727252648668,6.6534,150.3,150.25,6.5026]
[1727252649366,6.653,150.31,150.25,7.83349829]
[1727252649568,6.653,150.31,150.26,15.4738]
[1727252651647,7.07851646,150.3,150.26,15.4738]
[1727252652760,6.6534,150.3,150.26,15.4738]
[1727252656665,23.776884,150.29,150.26,15.4738]
[1727252656867,6.6538,150.29,150.26,15.4738]
[1727252657673,6.6534,150.3,150.26,15.4738]
[1727252657878,6.6534,150.3,150.26,16.80477875]
[1727252658250,6.6529,150.31,150.26,15.4738]
[1727252658971,30.428984,150.33,150.27,21.33077577]
[1727252660168,30.428984,150.33,150.26,22.0499]
[1727252660481,6.6525,150.32,150.26,22.0499]
[1727252661384,0.42511646,150.31,150.26,22.0499]
[1727252662774,30.85500046,150.31,150.26,22.0499]
[1727252663086,0.42511646,150.3,150.26,22.0499]
[1727252664087,30.429884,150.31,150.26,22.0499]
[1727252664986,23.776884,150.31,150.26,22.0499]
[1727252665222,6.652,150.33,150.27,1.3308007]
[1727252665488,23.776884,150.32,150.27,1.3308007]
[1727252666279,23.776884,150.33,150.27,1.3308007]
[1727252666469,0.245159,150.34,150.27,1.3308007]
[1727252666671,0.245159,150.34,150.27,20.0]
[1727252666872,0.245159,150.34,150.28,15.917]
[1727252667376,0.245159,150.34,150.29,1.33053375]
[1727252667683,24.022043,150.34,150.29,1.33053375]
[1727252668186,0.245159,150.34,150.28,15.917]
[1727252668394,0.245159,150.34,150.3,7.70850752]
[1727252668564,0.245159,150.34,150.3,6.378]
[1727252671081,24.022043,150.34,150.3,6.378]
[1727252671393,30.673743,150.34,150.3,6.378]
[1727252671889,0.245159,150.34,150.3,6.378]
[1727252672482,0.245159,150.34,150.31,15.9556]
[1727252672981,0.245159,150.34,150.31,17.28599365]
[1727252673289,0.245159,150.34,150.31,15.9556]
[1727252678283,0.245159,150.34,150.28,15.6369]
[1727252678480,6.6532,150.31,150.28,15.6369]
[1727252678777,6.6525,150.32,150.28,15.6369]
[1727252679097,6.6533,150.3,150.28,15.6369]
[1727252679798,30.429884,150.31,150.28,15.6369]
[1727252681880,23.776884,150.31,150.28,15.6369]
[1727252682194,6.6533,150.3,150.28,15.6369]
[1727252682769,0.42511646,150.29,150.26,6.5743]
[1727252682972,6.6533,150.3,150.26,6.5743]
[1727252688100,0.245159,150.34,150.29,41.2628]
[1727252688481,0.245159,150.34,150.3,1.33031131]
[1727252689497,0.245159,150.34,150.3,10.93243649]
[1727252689698,0.245159,150.34,150.32,16.23212518]
[1727252689890,0.3167846,150.39,150.34,16.0336]
[1727252692702,0.3167846,150.39,150.35,1.33001187]
[1727252693590,0.3167846,150.39,150.34,16.0336]
[1727252699119,0.3167846,150.39,150.35,1.32997228]
[1727252699893,0.3167846,150.39,150.34,16.0336]
[1727252704724,44.0936686,150.39,150.29,15.9762]
[1727252705099,23.776884,150.34,150.29,15.9762]
[1727252705421,7.07711646,150.33,150.29,15.9762]
[1727252705809,6.652,150.33,150.29,15.9762]
[1727252706218,23.776884,150.34,150.29,15.9762]
[1727252706694,30.428584,150.34,150.29,15.9762]
[1727252707714,0.42511646,150.33,150.29,15.9762]
[1727252707891,30.428584,150.34,150.29,15.9762]
[1727252708316,36.9410846,150.39,150.3,20.0]
[1727252708317,6.9664846,150.39,150.3,20.0]
[1727252708529,7.07531646,150.38,150.3,20.0]
[1727252708828,0.3167846,150.39,150.3,20.0]
[1727252709714,24.0936686,150.39,150.3,20.0]
[1727252710412,24.51878506,150.39,150.3,20.0]
[1727252710617,24.0936686,150.39,150.3,20.0]
[1727252710807,24.0936686,150.39,150.32,20.0]
[1727252711201,0.42511646,150.38,150.32,20.0]
[1727252712409,0.3167846,150.39,150.33,17.28264681]
[1727252712712,0.3167846,150.39,150.34,20.0]
[1727252714807,0.3167846,150.39,150.35,6.6407]
[1727252716809,0.3167846,150.39,150.36,1.32995397]
[1727252717011,0.3167846,150.39,150.37,15.003]
[1727252717213,0.3167846,150.39,150.38,1.32971263]
[1727252717416,0.3167846,150.39,150.37,15.003]
[1727252719225,0.3167846,150.39,150.38,1.32970299]
[1727252720706,0.3167846,150.39,150.38,21.32970299]
[1727252720921,0.3167846,150.39,150.38,26.3426]
[1727252721743,0.1058598,150.41,150.38,27.67202211]
[1727252721942,0.1058598,150.41,150.39,9.60212518]
[1727252722412,0.1058598,150.41,150.4,20.0]
[1727252723135,0.1058598,150.41,150.4,21.32942053]
[1727252724933,0.1058598,150.41,150.4,20.0]
[1727252726135,0.1058598,150.41,150.4,21.32941876]
[1727252727249,0.1058598,150.41,150.4,20.0]
[1727252728432,0.1058598,150.41,150.4,37.67216981]
[1727252730241,0.1058598,150.41,150.4,37.67212678]
[1727252730746,0.1058598,150.41,150.4,36.3429]
[1727252734417,0.1058598,150.41,150.39,20.0]
[1727252741351,0.1058598,150.41,150.39,21.32967246]
[1727252743451,0.1058598,150.41,150.39,20.0]
[1727252743853,0.1058598,150.41,150.39,21.32968154]
[1727252744352,0.1058598,150.41,150.39,21.32968055]
[1727252745263,0.1058598,150.41,150.39,20.0]
[1727252748559,0.1058598,150.41,150.37,20.0]
[1727252754659,0.53097626,150.41,150.37,20.0]
[1727252754966,24.30786026,150.41,150.37,20.0]
[1727252755172,23.8827438,150.41,150.37,20.0]
[1727252755376,0.1058598,150.41,150.37,21.32996638]
[1727252760675,0.1058598,150.41,150.37,20.0]
[1727252760846,0.53097626,150.41,150.37,20.0]
[1727252761247,0.53097626,150.41,150.35,20.0]
[1727252764063,23.776884,150.4,150.35,20.0]
[1727252764273,0.42511646,150.39,150.33,21.15802473]
[1727252764881,23.8827438,150.41,150.33,30.76014991]
[1727252765374,0.1058598,150.41,150.33,30.76014991]
[1727252765971,0.1058598,150.41,150.34,1.32998286]
[1727252766973,0.1058598,150.41,150.33,30.76014991]
[1727252767278,23.776884,150.4,150.33,21.15802473]
[1727252767462,0.42511646,150.39,150.33,21.15802473]
[1727252768051,23.776884,150.4,150.33,21.15802473]
[1727252768878,0.42511646,150.39,150.31,20.0]
[1727252769254,0.42511646,150.39,150.31,21.15834793]
[1727252769662,23.776884,150.38,150.31,21.15834793]
[1727252770176,23.776884,150.39,150.31,30.76047311]
[1727252770380,23.776884,150.4,150.32,1.33011547]
[1727252772590,23.776884,150.4,150.31,30.76047311]
[1727252774771,23.776884,150.4,150.31,21.15834793]
[1727252776375,6.6495,150.39,150.31,20.0]
[1727252776569,23.776884,150.38,150.31,20.0]
[1727252777076,6.6489,150.4,150.31,20.0]
[1727252777390,6.6489,150.4,150.31,29.60212518]
[1727252777900,0.1058598,150.41,150.31,29.60212518]
[1727252778072,6.7543598,150.41,150.31,29.60212518]
[1727252778270,0.1058598,150.41,150.31,20.0]
[1727252778870,6.6493,150.4,150.31,20.0]
[1727252779387,23.776884,150.39,150.31,20.0]
[1727252780287,0.1058598,150.41,150.33,20.0]
[1727252782094,0.1058598,150.41,150.36,9.60212518]
[1727252783589,0.1058598,150.41,150.35,20.0]
[1727252785594,0.1058598,150.41,150.37,20.0]
[1727252785792,0.1058598,150.41,150.38,1.32979259]
[1727252788478,0.1058598,150.41,150.37,35.5526]
[1727252791402,0.1058598,150.41,150.37,35.0526]
[1727252793800,0.1058598,150.41,150.37,15.5526]
[1727252793982,0.53097626,150.41,150.37,15.5526]
[1727252796092,24.20200046,150.4,150.35,20.0]
[1727252796803,30.85090046,150.4,150.35,20.0]
[1727252797021,30.85110046,150.4,150.35,20.0]
[1727252797510,30.425984,150.4,150.35,20.0]
[1727252798114,23.776884,150.4,150.35,20.0]
[1727252801180,0.1058598,150.41,150.38,16.5243]
[1727252801495,0.1058598,150.41,150.39,1.32969677]
[1727252802309,0.1058598,150.41,150.4,6.5304]
[1727252802486,0.1058598,150.41,150.4,26.5304]
[1727252808608,6.9621846,150.48,150.4,26.5304]
[1727252808609,0.3167846,150.48,150.42,20.0]
[1727252809497,0.3167846,150.48,150.43,1.32929234]
[1727252809697,0.3167846,150.48,150.42,20.0]
[1727252810594,0.3167846,150.48,150.42,29.60212518]
[1727252811009,0.3167846,150.48,150.42,20.0]
[1727252815803,0.3167846,150.48,150.44,22.6041]
[1727252816107,0.3167846,150.48,150.45,20.0]
[1727252816500,0.3167846,150.48,150.46,1.32890562]
[1727252816893,0.3167846,150.48,150.45,20.0]
[1727252817128,0.3167846,150.48,150.46,1.32889614]
[1727252817307,0.3167846,150.48,150.45,20.0]
[1727252820706,0.3167846,150.48,150.46,1.32891452]
[1727252823024,0.3167846,150.48,150.45,20.0]
[1727252825214,0.3167846,150.48,150.4,21.1674]
[1727252825418,23.776884,150.47,150.4,21.1674]
[1727252825618,0.3167846,150.48,150.4,21.1674]
[1727252826114,0.3167846,150.48,150.41,9.60212518]
[1727252826316,0.3167846,150.48,150.42,20.0]
[1727252828622,0.3167846,150.48,150.41,20.0]
[1727252829711,23.776884,150.47,150.42,1.32934022]
[1727252829907,24.0936686,150.48,150.42,1.32934022]
[1727252830930,0.3167846,150.48,150.43,20.0]
[1727252831523,0.3167846,150.48,150.41,20.0]
[1727252832928,0.3167846,150.48,150.42,1.32910403]
[1727252835337,0.3167846,150.48,150.41,20.0]
[1727252837134,0.3167846,150.48,150.4,28.10399994]
[1727252837135,24.20200046,150.47,150.4,28.10399994]
[1727252837445,23.776884,150.45,150.4,22.05719994]
[1727252837929,23.776884,150.47,150.4,22.05719994]
[1727252838233,23.776884,150.46,150.41,20.0]
[1727252838439,30.84830046,150.46,150.41,20.0]
[1727252838625,30.423184,150.46,150.41,20.0]
[1727252839215,6.6459,150.47,150.41,20.0]
[1727252840239,0.74190106,150.48,150.41,20.0]
[1727252840434,6.6462,150.47,150.41,20.0]
[1727252841334,7.38730106,150.48,150.41,20.0]
[1727252842720,23.776884,150.47,150.41,20.0]
[1727252843336,30.422984,150.47,150.41,20.0]
[1727252845820,6.6463,150.46,150.41,20.0]
[1727252846020,23.776884,150.45,150.41,20.0]
[1727252851450,30.423684,150.45,150.4,15.1206]
[1727252851742,0.42511646,150.44,150.36,23.0217]
[1727252852127,6.6476,150.43,150.36,23.0217]
[1727252852327,23.776884,150.42,150.36,23.0217]
[1727252852930,24.20200046,150.42,150.37,20.0]
[1727252854438,0.42511646,150.41,150.37,20.0]
[1727252854642,23.776884,150.4,150.36,16.5828]
[1727252855752,6.6481,150.42,150.36,16.5828]
[1727252855925,23.776884,150.41,150.36,16.5828]
[1727252857343,20.0,150.45,150.37,1.32997882]
[1727252857648,6.6475,150.44,150.36,16.5828]
[1727252857847,7.07271646,150.43,150.36,16.5828]
[1727252858437,6.6476,150.43,150.36,16.5828]
[1727252858635,24.20200046,150.42,150.36,16.5828]
[1727252858955,23.776884,150.42,150.36,16.5828]
[1727252866356,6.6469,150.45,150.37,6.5385]
[1727252866555,20.3167846,150.48,150.38,20.0]
[1727252866856,6.6463,150.46,150.39,1.32959791]
[1727252867476,6.6463,150.46,150.38,20.0]
[1727252867635,6.6459,150.47,150.38,20.0]
[1727252868454,6.6459,150.47,150.39,17.92966509]
[1727252868654,6.6463,150.46,150.39,16.6002]
[1727252869569,6.6463,150.46,150.4,1.32946976]
[1727252869751,6.6463,150.46,150.39,16.6002]
[1727252870439,23.776884,150.45,150.39,16.6002]
[1727252870639,30.423684,150.45,150.39,16.6002]
[1727252871759,23.776884,150.45,150.39,16.6002]
[1727252873766,24.20200046,150.45,150.39,16.6002]
[1727252874649,30.423784,150.45,150.4,1.3295424]
[1727252883175,30.423784,150.45,150.39,16.6002]
[1727252883176,0.3167846,150.48,150.41,6.4194]
[1727252883472,0.3167846,150.48,150.42,15.9792]
[1727252883846,6.6458,150.47,150.42,15.9792]
[1727252884454,6.6458,150.47,150.42,17.30863368]
[1727252885360,23.776884,150.46,150.42,17.30863368]
[1727252885555,23.776884,150.47,150.42,17.30863368]
[1727252888775,6.9622846,150.48,150.42,15.9792]
[1727252888978,23.776884,150.47,150.42,15.9792]
[1727252890248,30.422784,150.47,150.42,15.9792]
[1727252890982,6.9621846,150.48,150.42,15.9792]
[1727252892286,23.776884,150.47,150.42,15.9792]
[1727252895665,30.422884,150.47,150.42,15.9792]
[1727252898490,23.776884,150.47,150.42,15.9792]
[1727252898693,6.6463,150.46,150.42,15.9792]
[1727252898876,7.07141646,150.46,150.42,15.9792]
[1727252899380,6.6463,150.46,150.42,15.9792]
[1727252900185,23.776884,150.47,150.42,15.9792]
[1727252900492,30.422784,150.47,150.42,15.9792]
[1727252903790,23.776884,150.47,150.42,15.9792]
[1727252904601,30.422684,150.47,150.42,15.9792]
[1727252908181,0.3167846,150.48,150.42,15.9792]
[1727252909271,0.3167846,150.48,150.43,1.32929473]
[1727252909697,24.0936686,150.48,150.43,1.32929473]
[1727252910179,23.776884,150.48,150.43,1.32929473]
[1727252910386,24.022043,150.48,150.43,1.32929473]
[1727252911497,0.245159,150.48,150.42,15.9792]
[1727252911701,0.67027546,150.48,150.42,15.9792]
[1727252912197,0.245159,150.48,150.42,15.9792]
[1727252912698,24.022043,150.48,150.42,15.9792]
[1727252917092,0.42511646,150.47,150.42,15.9792]
[1727252917281,30.667543,150.48,150.42,15.9792]
[1727252922013,24.022043,150.48,150.42,15.9792]
[1727252922220,24.022043,150.48,150.43,1.32923349]
[1727252922921,24.022043,150.48,150.42,15.9792]
[1727252923917,0.245159,150.48,150.42,15.9792]
[1727252925632,0.245159,150.48,150.43,26.5744]
[1727252925800,0.245159,150.48,150.44,15.3157]
[1727252926010,0.245159,150.48,150.45,1.3290567]
[1727252928595,0.245159,150.48,150.44,15.3157]
[1727252929319,23.776884,150.46,150.44,15.3157]
[1727252929627,30.423084,150.46,150.44,15.3157]
[1727252930917,30.423084,150.46,150.43,6.5744]
[1727252935027,30.423084,150.46,150.43,6.5744]
[1727252935396,23.776884,150.46,150.43,6.5744]
[1727252935597,23.776884,150.47,150.43,6.5744]
[1727252940617,30.667943,150.47,150.43,6.5744]
[1727252940809,7.07141646,150.46,150.41,20.0]
[1727252941010,23.776884,150.45,150.41,20.0]
[1727252941308,0.42511646,150.44,150.41,20.0]
[1727252941905,23.776884,150.45,150.41,20.0]
[1727252952230,0.245159,150.47,150.41,20.0]
[1727252953512,23.776884,150.46,150.41,20.0]
[1727252963173,0.245159,150.47,150.41,20.0]
[1727252963348,24.022043,150.47,150.41,20.0]
[1727252966344,0.245159,150.47,150.41,21.3295232]
[1727252966542,0.245159,150.47,150.43,20.0]
[1727252977759,24.022043,150.47,150.43,20.0]
[1727252987944,0.245159,150.47,150.43,21.32944008]
[1727252988265,0.245159,150.47,150.43,20.0]
[1727252988964,23.776884,150.46,150.43,20.0]
[1727252989659,23.776884,150.46,150.37,18.52832142]
[1727252989660,6.648,150.43,150.38,22.6802]
[1727252989953,6.6471,150.44,150.38,22.6802]
[1727252990159,23.776884,150.43,150.38,22.6802]
[1727252998343,24.20200046,150.43,150.38,22.6802]
[1727253000278,23.776884,150.43,150.38,22.6802]
[1727253000763,24.20200046,150.43,150.38,22.6802]
[1727253001975,23.776884,150.43,150.38,22.6802]
[1727253002775,6.6467,150.45,150.39,21.32967507]
[1727253002949,23.776884,150.44,150.39,20.0]
[1727253003267,23.776884,150.44,150.39,21.32967588]
[1727253003868,23.776884,150.44,150.39,20.0]
[1727253004170,30.424084,150.44,150.39,20.0]
[1727253004476,6.6476,150.43,150.38,22.6802]
[1727253004865,30.424084,150.44,150.38,22.6802]
[1727253005574,6.890959,150.47,150.39,21.32974876]
[1727253005748,0.245159,150.47,150.4,16.536]
[1727253005952,0.245159,150.47,150.41,1.32942705]
[1727253006348,0.245159,150.47,150.4,16.536]
[1727253007584,0.245159,150.47,150.41,1.32942076]
[1727253007792,24.022043,150.47,150.41,1.32942076]
[1727253008578,24.022043,150.47,150.4,16.536]
[1727253010386,30.667843,150.47,150.4,16.536]
[1727253011280,30.667843,150.47,150.41,6.328]
[1727253011864,23.776884,150.45,150.41,6.328]
[1727253012178,6.6472,150.44,150.41,6.328]
[1727253012880,23.776884,150.43,150.41,6.328]
[1727253018576,24.20200046,150.43,150.4,16.536]
[1727253018964,23.776884,150.43,150.4,16.536]
[1727253019164,30.424484,150.43,150.4,16.536]
[1727253022590,30.424484,150.43,150.39,20.0]
[1727253022791,30.424484,150.43,150.38,20.0]
[1727253023301,23.776884,150.43,150.38,20.0]
[1727253023474,23.776884,150.41,150.38,20.0]
[1727253023882,24.20200046,150.41,150.38,20.0]
[1727253024774,23.776884,150.41,150.38,20.0]
[1727253026282,23.776884,150.41,150.37,6.0574]
[1727253026591,0.42511646,150.4,150.37,6.0574]
[1727253027399,0.42511646,150.4,150.36,15.7926]
[1727253028294,23.776884,150.39,150.36,15.7926]
[1727253031186,23.776884,150.4,150.36,15.7926]
[1727253032196,30.425784,150.4,150.36,15.7926]
[1727253039014,30.425784,150.4,150.34,20.0]
[1727253039687,0.42511646,150.39,150.34,20.0]
[1727253039878,0.42511646,150.39,150.32,15.8508]
[1727253039879,23.776884,150.36,150.32,15.8508]
[1727253040082,0.42511646,150.35,150.32,15.8508]
[1727253042614,23.776884,150.36,150.32,15.8508]
[1727253045812,0.42511646,150.35,150.32,15.8508]
[1727253047118,0.42511646,150.35,150.32,15.8508]
[1727253049809,23.776884,150.36,150.32,15.8508]
[1727253052014,23.776884,150.34,150.31,0.245159]
[1727253052319,6.6523,150.33,150.31,0.245159]
[1727253052488,23.776884,150.34,150.31,0.245159]
[1727253053517,30.428484,150.34,150.31,0.245159]
[1727253054524,23.776884,150.34,150.31,0.245159]
[1727253054814,23.776884,150.32,150.31,0.245159]
[1727253055317,24.20200046,150.32,150.31,0.245159]
[1727253055703,23.776884,150.32,150.31,0.245159]
[1727253065425,24.20200046,150.32,150.31,0.245159]
[1727253065613,30.429284,150.32,150.31,0.245159]
[1727253067441,23.776884,150.32,150.31,0.245159]
[1727253071130,23.776884,150.35,150.31,0.245159]
[1727253073204,23.776884,150.35,150.31,1.57571836]
[1727253073402,23.776884,150.35,150.31,0.245159]
[1727253078931,23.776884,150.35,150.31,1.57561915]
[1727253079132,23.776884,150.36,150.31,1.57561915]
[1727253079704,23.776884,150.36,150.31,0.245159]
[1727253080530,30.427584,150.36,150.31,0.245159]
[1727253085938,23.776884,150.34,150.31,0.245159]
[1727253086237,23.776884,150.32,150.31,0.245159]
[1727253086830,16.625,150.38,150.31,0.245159]
[1727253087040,23.776884,150.33,150.31,0.245159]
[1727253087633,23.776884,150.34,150.31,0.245159]
[1727253088211,23.776884,150.35,150.31,0.245159]
[1727253090917,0.42511646,150.34,150.31,0.245159]
[1727253091112,30.428084,150.35,150.31,0.245159]
[1727253096423,6.6516,150.34,150.31,0.245159]
[1727253096620,30.428084,150.35,150.31,0.245159]
[1727253103037,0.42511646,150.34,150.31,0.245159]
[1727253103546,30.428084,150.35,150.31,0.245159]
[1727253106056,23.776884,150.36,150.32,16.4206]
[1727253106724,6.6499,150.38,150.32,16.4206]
[1727253106949,6.6499,150.38,150.32,17.75095252]
[1727253107153,6.6489,150.4,150.32,16.4206]
[1727253107331,6.6489,150.4,150.33,7.91154659]
[1727253108538,23.776884,150.39,150.33,7.91154659]
[1727253108737,0.42511646,150.38,150.33,6.5814]
[1727253108932,7.07491646,150.38,150.33,6.5814]
[1727253109247,23.776884,150.37,150.33,6.5814]
[1727253109449,0.42511646,150.36,150.33,6.5814]
[1727253109653,23.776884,150.37,150.33,6.5814]
[1727253114058,23.776884,150.38,150.33,6.5814]
[1727253118741,30.426684,150.38,150.33,6.5814]
[1727253121472,23.776884,150.38,150.33,6.5814]
[1727253121634,0.42511646,150.37,150.33,6.5814]
[1727253121950,23.776884,150.35,150.32,16.4206]
[1727253122151,0.42511646,150.34,150.32,16.4206]
[1727253122368,6.651,150.36,150.32,16.4206]
[1727253122369,23.776884,150.36,150.32,16.4206]
[1727253126662,23.776884,150.34,150.32,16.4206]
[1727253126863,0.42511646,150.33,150.32,16.4206]
[1727253127243,23.776884,150.35,150.32,16.4206]
[1727253127944,23.776884,150.36,150.32,16.4206]
[1727253128150,23.776884,150.37,150.32,16.4206]
[1727253129181,30.427184,150.37,150.32,16.4206]
[1727253129342,23.776884,150.37,150.32,16.4206]
[1727253129544,23.776884,150.38,150.32,16.4206]
[1727253129756,23.776884,150.38,150.33,6.0181]
[1727253130068,30.426684,150.38,150.33,6.0181]
[1727253130862,23.776884,150.38,150.33,6.0181]
[1727253131063,23.776884,150.36,150.33,6.0181]
[1727253133946,23.776884,150.37,150.33,6.0181]
[1727253139569,23.776884,150.38,150.33,7.34840852]
[1727253139795,23.776884,150.38,150.33,6.0181]
[1727253140281,0.42511646,150.37,150.33,6.0181]
[1727253140863,23.776884,150.38,150.33,6.0181]
[1727253143156,23.776884,150.39,150.33,6.0181]
[1727253143365,23.776884,150.39,150.34,1.33028976]
[1727253143557,23.776884,150.39,150.35,15.7452]
[1727253143774,6.6488,150.41,150.35,15.7452]
[1727253144455,23.776884,150.4,150.35,15.7452]
[1727253148364,30.425784,150.4,150.35,15.7452]
[1727253152782,23.776884,150.4,150.35,15.7452]
[1727253152989,23.776884,150.38,150.35,15.7452]
[1727253153191,0.42511646,150.37,150.35,15.7452]
[1727253154296,23.776884,150.36,150.35,15.7452]
[1727253155593,30.427584,150.36,150.35,15.7452]
[1727253155812,23.776884,150.36,150.31,15.976459]
[1727253155987,23.776884,150.33,150.31,15.976459]
[1727253156300,23.776884,150.34,150.31,15.976459]
[1727253156495,0.42511646,150.33,150.31,15.976459]
[1727253156877,30.428484,150.34,150.31,15.976459]
[1727253157080,23.776884,150.34,150.31,15.976459]
[1727253157407,6.6498,150.38,150.31,15.976459]
[1727253158679,23.776884,150.37,150.31,15.976459]
[1727253162194,30.427184,150.37,150.31,15.976459]
[1727253165211,30.427184,150.37,150.31,17.30696824]
[1727253165513,23.776884,150.37,150.31,17.30696824]
[1727253166784,23.776884,150.37,150.31,15.976459]
[1727253167004,0.42511646,150.36,150.31,15.976459]
[1727253167203,30.427184,150.37,150.31,15.976459]
[1727253183921,23.776884,150.35,150.31,15.976459]
[1727253184226,0.42511646,150.34,150.31,15.976459]
[1727253185297,23.776884,150.35,150.31,15.976459]
[1727253185603,30.427584,150.36,150.31,15.976459]
[1727253187020,23.776884,150.36,150.31,15.976459]
[1727253188904,0.42511646,150.35,150.31,15.976459]
[1727253190324,23.776884,150.36,150.31,15.976459]
[1727253193828,23.776884,150.37,150.31,15.976459]
[1727253194532,23.776884,150.37,150.32,6.0625]
[1727253199652,23.48503284,150.44,150.34,6.2969]
[1727253199937,6.6481,150.42,150.35,16.39755603]
[1727253200541,6.6476,150.43,150.35,16.39755603]
[1727253201827,23.776884,150.42,150.35,16.39755603]
[1727253203545,23.776884,150.41,150.35,16.39755603]
[1727253211833,30.425784,150.41,150.35,15.0675]
[1727253213025,0.42511646,150.4,150.35,15.0675]
[1727253213232,23.776884,150.39,150.35,15.0675]
[1727253213962,0.42511646,150.38,150.35,15.0675]
[1727253216630,23.776884,150.39,150.35,15.0675]
[1727253224253,23.776884,150.4,150.35,15.0675]
[1727253242355,0.42511646,150.39,150.35,15.0675]
[1727253242552,23.776884,150.37,150.35,15.0675]
[1727253242758,0.42511646,150.36,150.35,15.0675]
[1727253243668,0.42511646,150.36,150.34,6.2969]
[1727253244048,23.776884,150.37,150.34,6.2969]
[1727253244569,6.6481,150.42,150.35,16.88547991]
[1727253245159,6.6476,150.43,150.35,16.88547991]
[1727253246757,23.776884,150.42,150.35,16.88547991]
[1727253247758,26.647,150.45,150.38,21.2372]
[1727253247955,20.0,150.46,150.38,21.2372]
[1727253248164,6.6463,150.46,150.39,21.2372]
[1727253249371,23.776884,150.45,150.39,21.2372]
[1727253253175,23.776884,150.45,150.4,1.32968068]
[1727253253369,0.245159,150.47,150.41,16.3478]
[1727253253758,0.42511646,150.46,150.41,16.3478]
[1727253253962,6.6467,150.45,150.41,16.3478]
[1727253254160,0.42511646,150.44,150.41,16.3478]
[1727253254460,6.6465,150.46,150.41,16.3478]
[1727253254673,23.776884,150.45,150.41,16.3478]
[1727253256375,0.245159,150.47,150.42,1.32960219]
[1727253256563,0.245159,150.47,150.43,6.0122]
[1727253268888,0.245159,150.47,150.44,16.83101633]
[1727253271577,0.245159,150.47,150.44,15.5016]
[1727253271791,0.245159,150.47,150.44,16.83081226]
[1727253272300,0.245159,150.47,150.44,15.5016]
[1727253273497,0.67027546,150.47,150.44,15.5016]
[1727253273705,23.776884,150.46,150.44,15.5016]
[1727253274498,23.776884,150.46,150.35,43.25135718]
[1727253274499,0.42511646,150.45,150.4,15.621]
[1727253274805,23.776884,150.43,150.4,15.621]
[1727253274982,23.776884,150.46,150.4,15.621]
[1727253275183,24.022043,150.47,150.41,27.42379872]